Cogmind - Beta 15 @@@ ROGUE MODE // 2025.07.31 @ 04:44:37 Player: Aon Result: Destroyed by Y-64 Sentinel with KE Penetrator Performance ------------- Evolutions (6) 3000 Regions Visited (10) 2000 Robots Destroyed (16) 80 Value Destroyed (540) 540 Prototype IDs (4) 80 Alien Tech Used (0) 0 Bonus (1145) 1145 TOTAL SCORE: 6845 Bonus ------- Follower Combat Kills 763 Met Imprinter 300 Was Imprinted 300 Friendly Fire -218 Cogmind --------- Core Integrity 0/1150 Matter 281/300 Energy 99/100 System Corruption 0% Temperature Cool (0) Movement Core (50) Location -4/Extension Parts ------- > --- POWER (4) -------- (None) > --- PROPULSION (6) --- (None) > --- UTILITY (6) ------ Advanced Signal Interpreter Advanced Targeting Computer Makeshift Utility Shielding Hacking Suite > --- WEAPON (3) ------- (None) > --- INVENTORY (5) ---- Compact Battery (200) Advanced Signal Interpreter Peak State ------------ > --- POWER ------------ Angular Momentum Engine Light Angular Momentum Engine > --- PROPULSION ------- Improved Gravmag System Gyrokinetic Inverter Gyrokinetic Inverter Gyrokinetic Inverter > --- UTILITY ---------- Structural Scanner Transmission Jammer Makeshift Utility Shielding Makeshift Light Armor Plating Hacking Suite Hacking Drone Bay > --- WEAPON ----------- Plasma Rifle CR-A16's Pointy Stick Lance > --- INVENTORY -------- Linear Gravjet Improved Focal Shield Phasing AFG Self-destruct Interrupter [Rating: 76] Favorites ----------- Power Light Ion Engine Engine Light Ion Engine Power Core Light Nuclear Core Propulsion Aluminum Leg Treads Medium Treads Leg Aluminum Leg Wheel Armored Huge Wheel Hover Unit Gyrokinetic Inverter Flight Unit Field Propulsion Drive Utility Makeshift Utility Shielding Device Hacking Drone Bay Storage Compact Battery Processor Visual Processing Unit Hackware Hacking Suite Protection Makeshift Utility Shielding Weapon Riot Gun Energy Gun Riot Gun Energy Cannon Improved EM Pulse Cannon Ballistic Gun Assault Rifle Ballistic Cannon Light Cannon Special Weapon Flamer Piercing Weapon CR-A16's Pointy Stick Build | -11 -10 -10 -9 -9 -7 -6 -6 -5 -4 -4 ------- Run | Yrd Mat Min Mat Min Zio Pro Fac Fac Fac Ext Slots Evolved 12 | . . . 2 . . . 6 2 2 . Power 3 | . . . 1 . . . 2 . . . Propulsion 4 | . . . . . . . 2 . 2 . Utility 4 | . . . 1 . . . 1 2 . . Weapon 1 | . . . . . . . 1 . . . Parts Attached 74 | 3 5 2 4 1 9 15 6 15 8 6 Power 15 | 1 . 1 1 1 1 3 3 2 . 2 Engine 11 | 1 . . 1 1 1 2 3 2 . . Core 4 | . . 1 . . . 1 . . . 2 Reactor . | . . . . . . . . . . . Propulsion 21 | 2 . . 1 . 2 4 1 5 3 3 Treads 3 | . . . . . . 2 1 . . . Leg 9 | 2 . . 1 . 2 2 . . . 2 Wheel 1 | . . . . . . . . . 1 . Hover 5 | . . . . . . . . 5 . . Flight 3 | . . . . . . . . . 2 1 Utility 22 | . 2 1 1 . 3 3 1 6 4 1 Device 9 | . . 1 . . 2 1 . 2 2 1 Storage 4 | . . . . . . 1 . 3 . . Processor 3 | . 1 . . . . . . . 2 . Hackware 1 | . . . . . . . . 1 . . Protection 5 | . 1 . 1 . 1 1 1 . . . Artifact . | . . . . . . . . . . . Weapon 16 | . 3 . 1 . 3 5 1 2 1 . Energy Gun 4 | . . . 1 . 1 1 . . 1 . Energy Cannon 1 | . . . . . . 1 . . . . Ballistic Gun 3 | . 2 . . . . 1 . . . . Ballistic Cannon 3 | . 1 . . . 1 1 . . . . Launcher . | . . . . . . . . . . . Special Weapon 3 | . . . . . 1 1 1 . . . Impact Weapon . | . . . . . . . . . . . Slashing Weapon . | . . . . . . . . . . . Piercing Weapon 2 | . . . . . . . . 2 . . Special Melee Weapon . | . . . . . . . . . . . Unidentified Prototypes 4 | . . . . . 2 . . 1 . 1 Parts Lost 39 | . . 1 . 1 . 4 . 21 5 7 Power 11 | . . . . . . 3 . 6 . 2 Propulsion 13 | . . . . . . . . 7 3 3 Utility 10 | . . 1 . . . . . 5 2 2 Weapon 5 | . . . . 1 . 1 . 3 . . Highest Loss Streak 10 | . . 1 . 1 . 2 . 10 3 7 To Critical Strikes 1 | . . . . 1 . . . . . . Average Backups 3 | 2 3 4 4 4 4 4 3 2 3 2 Power . | . 1 2 1 1 . . . . . . Propulsion . | . . 1 2 2 1 . . . . . Utility 1 | . 1 . . . 1 2 1 1 2 2 Weapon 1 | 1 1 1 1 . 1 2 2 . . . Tool/Special . | . . . . . . . . . . . Unused Backups 7 | . . 2 . . 4 . . . . 1 Power 1 | . . 1 . . . . . . . . Propulsion 3 | . . . . . 3 . . . . . Utility 3 | . . 1 . . 1 . . . . 1 Weapon . | . . . . . . . . . . . Tool/Special . | . . . . . . . . . . . Average Slot Usage (%) 85 | . 81 99 97 88 96 91 70 81 30 36 Engine 15 | . 14 8 11 22 22 10 14 16 . . Core 1 | . . 6 11 . . 4 . . . 2 Treads 4 | . . . . . . 13 14 9 . . Leg 14 | . 28 28 22 22 22 8 . . . 3 Device 12 | . . 6 11 11 11 19 13 16 3 6 Processor 7 | . 7 14 11 11 11 1 . . 7 10 Protection 10 | . 5 7 8 11 10 11 13 10 5 5 Energy Gun 6 | . . . 2 8 9 7 6 4 . . Ballistic Gun 1 | . 22 14 8 . . 3 . . . . Ballistic Cannon 1 | . 3 14 11 2 . 3 . 1 . . Special Weapon 5 | . . . . . 9 5 7 1 . . Peak Build Rating 76 | 3 8 12 15 13 35 43 56 76 39 45 Average Rating 32 | 2 6 9 14 11 29 39 49 62 26 29 On Entrance 19 | . 3 8 12 15 11 35 40 56 16 21 Naked Turns . | . . . . . . . . . . . Heaviest Build 62 | 3 11 11 21 18 19 32 52 62 6 14 Greatest Support 68 | 20 20 20 20 20 35 48 68 68 28 48 Greatest Overweight (x) 11 | . . . 1 . . . . 11 1 2 Average Overweight (x) . | . . . . . . . . . . . Largest Inventory Capacity 5 | 5 5 5 5 5 5 5 5 5 5 5 Average Capacity 5 | 5 5 5 5 5 5 5 5 5 5 5 Most Carried 5 | 5 5 5 4 5 5 5 5 5 5 2 Average Carried 4 | 2 3 4 4 4 4 5 4 3 4 2 Final Capacity 5 | 5 5 5 5 5 5 5 5 5 5 5 Final Carried 5 | 5 5 5 4 5 5 5 5 5 2 2 Class Distribution -------------------- 40% | Derelict-Mutant 33% | Mutant 22% | Scavenger-Mutant Dominant Class ---------------- Mutant | -10/Materials Mutant | -10/Mines Scavenger-Mutant | -9/Materials Mutant | -9/Mines Derelict-Mutant | -7/Zion Scavenger-Mutant | -6/Proximity Caves Derelict-Mutant | -6/Factory Scavenger-Mutant | -5/Factory Mutant | -4/Factory Mutant | -4/Extension Resources | -11 -10 -10 -9 -9 -7 -6 -6 -5 -4 -4 ----------- Run | Yrd Mat Min Mat Min Zio Pro Fac Fac Fac Ext Matter Collected 1172 | 228 10 102 30 128 70 298 42 113 28 123 Remotely . | . . . . . . . . . . . Salvage Created 556 | . 10 61 30 46 . 242 . 139 28 . Parts 25 | . 3 3 . 5 . 10 . . 4 . Haulers Intercepted . | . . . . . . . . . . . Recyclers Shooed 3 | . . . . 1 . . . 1 . 1 Parts Field Recycled . | . . . . . . . . . . . Retrieved Matter . | . . . . . . . . . . . Parts Self-Destructed 28 | . . . . . . 28 . . . . Prevented 1 | . . . . . . 1 . . . . Kills | -11 -10 -10 -9 -9 -7 -6 -6 -5 -4 -4 ------- Run | Yrd Mat Min Mat Min Zio Pro Fac Fac Fac Ext Combat Hostiles Destroyed 14 | . . 2 1 3 . 6 . 2 . . Guns 9 | . . 1 1 3 . 4 . . . . Cannons 2 | . . 1 . . . 1 . . . . AOE 1 | . . . . . . 1 . . . . Classes Destroyed 7 | . 1 1 . 1 . 2 . 1 1 . Builder 1 | . . . . . . . . . 1 . Watcher 1 | . 1 . . . . . . . . . Swarmer 6 | . . . . 3 . 3 . . . . Grunt 4 | . . 2 1 . . 1 . . . . Brawler 1 | . . . . . . 1 . . . . Duelist 1 | . . . . . . 1 . . . . Sentry 2 | . . . . . . . . 2 . . Best Kill Streak 3 | . 1 1 1 3 . 1 . 1 1 . Combat Bots Only 3 | . . 1 1 3 . 1 . 1 . . Max Kills in Single Turn 1 | . 1 1 1 1 . 1 . 1 1 . Gunslinging . | . . . . . . . . . . . Exploded 1 | . . . . . . 1 . . . . Melee . | . . . . . . . . . . . Uniques/NPCs Destroyed . | . . . . . . . . . . . Combat | -11 -10 -10 -9 -9 -7 -6 -6 -5 -4 -4 -------- Run | Yrd Mat Min Mat Min Zio Pro Fac Fac Fac Ext Hostile Shots Fired 545 | . . 27 27 33 . 64 9 245 75 65 Missed 180 | . . 8 8 9 . 21 4 80 24 26 Hits 365 | . . 19 19 24 . 43 5 165 51 39 Melee 4 | . . . . . . 4 . . . . Projectile 361 | . . 19 19 24 . 39 5 165 51 39 Critical Strikes 15 | . . 1 . 1 . 3 . 4 1 5 Actively Blocked 1 | . . . . . . . . . . 1 Damage Taken 6564 | . . 237 217 194 . 942 42 2825 1021 1086 Core 2263 | . . . 27 26 . 219 10 812 525 644 Absorbed by Shields . | . . . . . . . . . . . Redirected to Shielding 75 | . . . . . . 4 . 30 28 13 Ignored by Resistances 121 | . . . . . . . . 121 . . Regen/Repaired (Parts) 36 | . . . 36 . . . . . . . Core Remaining (%) 69 | 100 . 100 . . . 32 98 18 . . Volleys Fired 66 | . 1 13 10 14 . 20 . 8 . . Largest 2 | . 2 2 2 1 . 2 . 2 . . Hottest 155 | . 40 50 70 40 . 155 . 155 . . Shots Fired 111 | . 2 26 20 14 . 33 . 16 . . Gun 64 | . 2 13 10 14 . 17 . 8 . . Cannon 42 | . . 13 10 . . 12 . 7 . . Launcher . | . . . . . . . . . . . Special 5 | . . . . . . 4 . 1 . . Kinetic 63 | . 2 26 19 . . 9 . 7 . . Thermal 36 | . . . 1 14 . 12 . 9 . . Explosive . | . . . . . . . . . . . Electromagnetic 12 | . . . . . . 12 . . . . Robot Hit Streak 5 | . 2 4 4 5 . 4 . 5 . . Robot Miss Streak 6 | . . 2 6 1 . 3 . 5 . . Penetration Max . | . . . . . . . . . . . Secondary Targets . | . . . . . . . . . . . Shots Hit Robots 61 | . 2 16 8 9 . 15 . 11 . . Core Hits 31 | . 2 4 2 4 . 11 . 3 4 1 Critical Kills . | . . . . . . . . . . . Critical Parts Destroyed 1 | . . . . . . . . 1 . . Critical Strikes 6 | . . 1 . . . 1 . 4 . . Burn 3 | . . . . . . 1 . 2 . . Destroy 2 | . . . . . . . . 2 . . Blast 1 | . . 1 . . . . . . . . Melee Attacks 2 | . . . . . . . . 2 . . Impact . | . . . . . . . . . . . Slashing . | . . . . . . . . . . . Piercing 2 | . . . . . . . . 2 . . Sneak Attacks 1 | . . . . . . . . 1 . . Combat Hostiles . | . . . . . . . . . . . Follow-up Attacks . | . . . . . . . . . . . Damage Inflicted 1424 | . 22 219 116 114 . 644 . 274 16 19 Guns 680 | . 22 116 48 102 . 263 . 129 . . Cannons 299 | . . 103 68 . . 67 . 61 . . Explosions 304 | . . . . . . 304 . . . . Melee 72 | . . . . . . . . 72 . . Ramming 47 | . . . . 12 . . . . 16 19 Kinetic 460 | . 22 219 104 . . 54 . 61 . . Thermal 679 | . . . 12 102 . 424 . 141 . . Explosive . | . . . . . . . . . . . Electromagnetic 166 | . . . . . . 166 . . . . Impact . | . . . . . . . . . . . Slashing . | . . . . . . . . . . . Piercing 72 | . . . . . . . . 72 . . Highest Corruption . | . . . . . . . . . . . Average Corruption . | . . . . . . . . . . . Corruption Purged . | . . . . . . . . . . . Corruption Blocked . | . . . . . . . . . . . Overload Shots . | . . . . . . . . . . . Overflow Damage 9 | . . . 5 . . 4 . . . . Projectiles 5 | . . . 5 . . . . . . . Explosions 4 | . . . . . . 4 . . . . Melee . | . . . . . . . . . . . Knockbacks 4 | . . 3 1 . . . . . . . Impact . | . . . . . . . . . . . Kinetic 4 | . . 3 1 . . . . . . . Secondary . | . . . . . . . . . . . Self-Inflicted Damage 49 | . . . . . . 41 . . 7 1 Shots 1 | . . . . . . 1 . . . . Rammed 6 | . . . . . . . . . 5 1 Targets Rammed 11 | . . . . 4 . . . . 5 2 Kicked 5 | . . . . 4 . . . . . 1 Crushed . | . . . . . . . . . . . Highest Temperature 620 | . . 45 . . . 391 2 620 . . Average Temperature 164 | . . 21 . . . 131 2 223 . . Received Heat Transfer 790 | . . 153 111 . . 109 18 234 21 144 Effects 18 | . . . . . . . . 18 . . Shutdowns 8 | . . . . . . . . 8 . . Energy Bleed 3 | . . . . . . . . 3 . . Interference 1 | . . . . . . . . 1 . . Matter Decay 2 | . . . . . . . . 2 . . Short Circuit 1 | . . . . . . . . 1 . . Damage (minor) 1 | . . . . . . . . 1 . . Damage (major) 2 | . . . . . . . . 2 . . Siege Activations . | . . . . . . . . . . . Martial Activations . | . . . . . . . . . . . Shielding Activations . | . . . . . . . . . . . Robots Disrupted . | . . . . . . . . . . . Combat Hostiles . | . . . . . . . . . . . Robots Corrupted . | . . . . . . . . . . . Combat Hostiles . | . . . . . . . . . . . Parts Fried . | . . . . . . . . . . . Impact Corruptions . | . . . . . . . . . . . Robots Melted 2 | . . . . . . . . 2 . . Combat Hostiles 2 | . . . . . . . . 2 . . Parts Melted 4 | . . . 1 . . . . 3 . . Heat Transferred 1730 | . . . 25 225 . 840 . 640 . . Parts Sabotaged . | . . . . . . . . . . . Parts Stolen . | . . . . . . . . . . . Parts Stripped . | . . . . . . . . . . . Power Chain Reactions 3 | . . . . . . 3 . . . . Alert | -11 -10 -10 -9 -9 -7 -6 -6 -5 -4 -4 ------- Run | Yrd Mat Min Mat Min Zio Pro Fac Fac Fac Ext Maximum Alert Level 1 | . . . . . . . 1 . . . Low Security (%) 97 | 100 100 100 100 100 . . 78 100 100 100 Level 1 2 | . . . . . . . 21 . . . Level 2 . | . . . . . . . . . . . Level 3 . | . . . . . . . . . . . Level 4 . | . . . . . . . . . . . Level 5 . | . . . . . . . . . . . High Security . | . . . . . . . . . . . Max Security . | . . . . . . . . . . . Peak Influence 224 | . 7 30 31 75 . . 224 75 104 171 Initial 224 | . . . . . . . 224 63 . 43 Average 42 | . 1 5 . 36 . . 171 16 16 87 Influence Increases 1627 | . 7 50 31 85 . 839 45 139 219 212 Destroy 0b10 Robot/C 760 | . . 40 20 60 . 440 20 40 20 120 Destroy 0b10 Robot/NC 25 | . 5 . . . . . 5 . 15 . Destroy Leader 112 | . 2 10 10 10 . 40 10 20 . 10 Allied During Kill 385 | . . . . . . 359 3 . 6 17 Successful Hack 6 | . . . . . . . . . . 6 Destroy Structure 54 | . . . 1 . . . 7 4 28 14 Partial Spotted 15 | . . . . . . . . . 15 . Lose Combat Pursuer 270 | . . . . 15 . . . 75 135 45 Influence Decreases 1582 | . 7 50 31 50 35 482 273 268 130 256 Entered New Map 280 | . . . . . 35 . 133 66 . 46 Time Decay 859 | . 7 40 . 50 . 362 140 120 50 90 Lost Part 224 | . . 10 . . . 40 . 69 35 70 Lost Ally 188 | . . . . . . 80 . 13 45 50 Purge Threat 31 | . . . 31 . . . . . . . Squads Dispatched 7 | . . . 1 . . . 1 2 3 . Investigation 2 | . . . 1 . . . . 1 . . Extermination 3 | . . . . . . . 1 1 1 . Reinforcement 2 | . . . . . . . . . 2 . Assault . | . . . . . . . . . . . Garrison . | . . . . . . . . . . . Intercept . | . . . . . . . . . . . Searches Triggered . | . . . . . . . . . . . Construction Impeded . | . . . . . . . . . . . Haulers Reinforced . | . . . . . . . . . . . Active Scanning Responses . | . . . . . . . . . . . Cargo Convoy Interrupts . | . . . . . . . . . . . Stealth | -11 -10 -10 -9 -9 -7 -6 -6 -5 -4 -4 --------- Run | Yrd Mat Min Mat Min Zio Pro Fac Fac Fac Ext Distress Signals 2 | . . . . . . . . . . 2 Communications Jammed 7 | . . . . . . . . 7 . . Distress Signals 7 | . . . . . . . . 7 . . Times Spotted 95 | . 2 2 10 4 . 22 1 18 19 17 Peak Tracking Total 11 | . 1 2 6 3 . 4 1 10 9 11 Tactical Retreats 9 | . . . . 1 . . . 1 5 2 Traps | -11 -10 -10 -9 -9 -7 -6 -6 -5 -4 -4 ------- Run | Yrd Mat Min Mat Min Zio Pro Fac Fac Fac Ext Traps Triggered 1 | . . . . . . . . . . 1 Indirectly . | . . . . . . . . . . . Trap Hack Attempts . | . . . . . . . . . . . Triggered . | . . . . . . . . . . . Disarmed . | . . . . . . . . . . . Reprogrammed 4 | . . . 4 . . . . . . . Reused . | . . . . . . . . . . . Traps Extracted . | . . . . . . . . . . . Installed . | . . . . . . . . . . . Triggered . | . . . . . . . . . . . Machines | -11 -10 -10 -9 -9 -7 -6 -6 -5 -4 -4 ---------- Run | Yrd Mat Min Mat Min Zio Pro Fac Fac Fac Ext Machines Disabled 1 | . . . . . . 1 . . . . Max in Single Turn . | . . . . . . . . . . . Machines Repaired . | . . . . . . . . . . . Machines Dismantled . | . . . . . . . . . . . Machines Sabotaged . | . . . . . . . . . . . Overloaded Fab Kills . | . . . . . . . . . . . Hacking | -11 -10 -10 -9 -9 -7 -6 -6 -5 -4 -4 --------- Run | Yrd Mat Min Mat Min Zio Pro Fac Fac Fac Ext Machines Accessed 7 | . . . 3 . . . . 1 2 1 Terminals 4 | . . . 2 . . . . . 1 1 Fabricators . | . . . . . . . . . . . Repair Stations 1 | . . . 1 . . . . . . . Recycling Units 1 | . . . . . . . . . 1 . Scanalyzers . | . . . . . . . . . . . Garrison Access 1 | . . . . . . . . 1 . . Total Hacks 19 | . . . 8 . . . . 1 6 4 Successful 10 | . . . 6 . . . . . 3 1 Failed 9 | . . . 2 . . . . 1 3 3 Catastrophic 2 | . . . 1 . . . . . . 1 Database Lockouts . | . . . . . . . . . . . Manual 21 | . . . . . 2 . . 4 6 9 Terminals 9 | . . . 4 . . . . . 1 4 Fabricators . | . . . . . . . . . . . Repair Stations 4 | . . . 4 . . . . . . . Recycling Units 5 | . . . . . . . . . 5 . Scanalyzers . | . . . . . . . . . . . Garrison Access 1 | . . . . . . . . 1 . . Terminal Hacks 5 | . . . 3 . . . . . 1 1 Record 1 | . . . 1 . . . . . . . Open Door 2 | . . . . . . . . . 1 1 Unreport Threat 1 | . . . 1 . . . . . . . Reprogram Traps 1 | . . . 1 . . . . . . . Fabricator Hacks . | . . . . . . . . . . . Repair Station Hacks 3 | . . . 3 . . . . . . . Scan Component 1 | . . . 1 . . . . . . . Repair 1 | . . . 1 . . . . . . . Refit 1 | . . . 1 . . . . . . . Recycling Unit Hacks 2 | . . . . . . . . . 2 . Recycle Component 1 | . . . . . . . . . 1 . Process 1 | . . . . . . . . . 1 . Scanalyzer . | . . . . . . . . . . . Garrison Access Hacks . | . . . . . . . . . . . Unauthorized Hacks . | . . . . . . . . . . . Terminals . | . . . . . . . . . . . Fabricators . | . . . . . . . . . . . Repair Stations . | . . . . . . . . . . . Recycling Units . | . . . . . . . . . . . Scanalyzers . | . . . . . . . . . . . Garrison Access . | . . . . . . . . . . . Data Cores Recovered . | . . . . . . . . . . . Used . | . . . . . . . . . . . Hacking Detections 4 | . . . 3 . . . . . . 1 Full Trace Events 1 | . . . 1 . . . . . . . Feedback Events . | . . . . . . . . . . . Feedback Blocked . | . . . . . . . . . . . Robot Schematics Acquired 3 | . . . . . 3 . . . . . Robots Built . | . . . . . . . . . . . Authchips . | . . . . . . . . . . . Time . | . . . . . . . . . . . Total Robot Build Rating . | . . . . . . . . . . . Part Schematics Acquired 15 | . . . . . 15 . . . . . Parts Built . | . . . . . . . . . . . Authchips . | . . . . . . . . . . . Time . | . . . . . . . . . . . Total Part Build Rating . | . . . . . . . . . . . Parts Repaired 1 | . . . 1 . . . . . . . Time 26 | . . . 26 . . . . . . . Parts Recycled 1 | . . . . . . . . . 1 . Recycled Matter 19 | . . . . . . . . . 19 . Retrieved Matter . | . . . . . . . . . . . Retrieved Components . | . . . . . . . . . . . Parts Scanalyzed . | . . . . . . . . . . . Part Schematics Acquired . | . . . . . . . . . . . Parts Damaged . | . . . . . . . . . . . Bothacking | -11 -10 -10 -9 -9 -7 -6 -6 -5 -4 -4 ------------ Run | Yrd Mat Min Mat Min Zio Pro Fac Fac Fac Ext Used RIF Installer . | . . . . . . . . . . . Robots Hacked . | . . . . . . . . . . . Non-combat . | . . . . . . . . . . . Combat . | . . . . . . . . . . . Robot Hacks Applied . | . . . . . . . . . . . Relay Couplers Released . | . . . . . . . . . . . Fabnet Peak Effective % . | . . . . . . . . . . . Robots Rewired . | . . . . . . . . . . . Allies Hacked . | . . . . . . . . . . . Hacks Repelled . | . . . . . . . . . . . Allies | -11 -10 -10 -9 -9 -7 -6 -6 -5 -4 -4 -------- Run | Yrd Mat Min Mat Min Zio Pro Fac Fac Fac Ext Total Allies 13 | . . . . . 6 . . . 4 3 Largest Group 6 | . . . . . 6 6 1 1 3 3 Highest-Rated Group 347 | . . . . . 347 347 38 38 243 233 Highest-Rated Ally 103 | . . . . . 96 96 38 38 81 103 Zionite Dispatches 5 | . . . . . . . . 1 2 2 Heavy 1 | . . . . . . . . . . 1 Recon 1 | . . . . . . . . 1 . . Hacker 1 | . . . . . . . . . 1 . Trap Resupply 1 | . . . . . . . . . 1 . Hacking Resupply 1 | . . . . . . . . . . 1 Total Orders . | . . . . . . . . . . . Ally Attacks 98 | . . . . . . 82 3 1 4 8 Total Damage 4021 | . . . . . . 2664 162 20 588 587 Kills 29 | . . . . . . 17 2 . 4 6 Allies Corrupted 2 | . . . . . . 1 . . 1 . Allies Melted . | . . . . . . . . . . . Intel | -11 -10 -10 -9 -9 -7 -6 -6 -5 -4 -4 ------- Run | Yrd Mat Min Mat Min Zio Pro Fac Fac Fac Ext Active Infowar (turns) 4235 | . 42 194 219 147 2184 767 280 402 . . Optics 2909 | . 42 194 219 147 2184 123 . . . . Structural 341 | . . . . . . . . 341 . . Jamming 1326 | . . . . . . 644 280 402 . . Robot Analysis Total . | . . . . . . . . . . . Derelict Logs Recovered 6 | . . . . 1 2 3 . . . . Drone Launches 5 | . . . . . 1 . . 2 2 . Drone Recoveries 3 | . . . . . . . 1 1 1 . Zionite Intel Received 1 | . . . . . . . . . . 1 Main Access 1 | . . . . . . . . . . 1 Exploration | -11 -10 -10 -9 -9 -7 -6 -6 -5 -4 -4 ------------- Run | Yrd Mat Min Mat Min Zio Pro Fac Fac Fac Ext Turns Passed 5028 | 70 77 194 219 147 2184 838 280 490 342 187 Spaces Moved 3915 | 53 54 125 124 91 1744 509 165 309 501 240 Core 406 | 3 . . . . . . . 16 209 178 Treads 557 | . . . . . . 298 165 94 . . Legs 2460 | 50 54 125 124 91 1744 211 . . . 61 Wheels 66 | . . . . . . . . . 66 . Hover 199 | . . . . . . . . 199 . . Flight 227 | . . . . . . . . . 226 1 Fastest Speed 39 | 50 120 120 120 120 120 125 163 48 39 50 Average Speed 119 | 116 120 120 148 120 123 148 164 139 63 66 Slowest Speed 600 | 120 120 120 190 120 125 170 165 600 100 150 Overloaded Moves . | . . . . . . . . . . . Propulsion Burnouts . | . . . . . . . . . . . Robots Hopped . | . . . . . . . . . . . Potential Cave-ins . | . . . . . . . . . . . Cave-ins Triggered . | . . . . . . . . . . . Exploration Rate (%) 32 | 4 16 40 20 31 90 74 4 16 16 41 Regions Visited 10 Branch Regions 5 Pre-discovered Areas 4 | . . 1 . . 2 1 . . . . Known Exits Taken 3 | . . . . . . 1 1 . 1 . Unknown Exits Taken 7 | 1 1 1 1 1 1 . . 1 . . Scrap Searched 8 | . . 1 . 1 2 4 . . . . Spaces Dug . | . . . . . . . . . . . Terrain Destroyed 43 | . . . . . . 41 . 2 . . Melee . | . . . . . . . . . . . Projectile 7 | . . . . . . 5 . 2 . . AOE 36 | . . . . . . 36 . . . . Terrain Rammed . | . . . . . . . . . . . Walls Destroyed . | . . . . . . . . . . . Machines Disabled . | . . . . . . . . . . . Actions | -11 -10 -10 -9 -9 -7 -6 -6 -5 -4 -4 --------- Run | Yrd Mat Min Mat Min Zio Pro Fac Fac Fac Ext Total 4149 | 60 63 143 137 114 1774 555 171 344 525 263 Wait 2 | . . . . . 1 1 . . . . Move 3905 | 52 53 124 123 90 1743 508 164 308 500 240 Hop . | . . . . . . . . . . . Pick Up 23 | 5 3 2 . 2 5 . 1 2 3 . Fast Attach 56 | 3 2 1 1 . 9 12 5 11 6 6 Attach 13 | . 3 . 1 . . . 1 5 3 . Detach 8 | . . . . . 2 . . 3 3 . Swap 11 | . . 1 2 2 1 3 . 2 . . Drop 37 | . 1 2 . 2 13 11 . 3 5 . Fire 66 | . 1 13 10 14 . 20 . 8 . . Melee 2 | . . . . . . . . 2 . . Ram 6 | . . . . . . . . . 5 1 Kick 5 | . . . . 4 . . . . . 1 Crush . | . . . . . . . . . . . Escape Stasis 15 | . . . . . . . . . . 15 Rewire . | . . . . . . . . . . . Trap . | . . . . . . . . . . . Miscellaneous . | . . . . . . . . . . . Route ------- -11/Scrapyard -10/Materials -10/Mines -9/Materials -9/Mines -7/Zion -6/Proximity Caves -6/Factory -5/Factory -4/Factory -4/Extension (discovered 2 exits: Res x2) History --------- Turn | Location | Event 29 | -11/Scrapyard | Discovered new exit (range 16) 71 | -11/Scrapyard | Entered Materials 130 | -10/Materials | Discovered new exit (range 15) 148 | -10/Materials | Entered Mines 152 | -10/Mines | Learned location of Storage (-9) 274 | -10/Mines | Discovered new exit (range 17) 300 | -10/Mines | Build established: Mutant 342 | -10/Mines | Entered Materials 342 | -9/Materials | Evolved 2 slots: Power x1, Utility x1 462 | -9/Materials | Repaired Aluminum Leg? 546 | -9/Materials | Discovered new exit (range 13) 561 | -9/Materials | Entered Mines 566 | -9/Mines | Learned 2 Materials zone layouts 604 | -9/Mines | Excavation squad dispatched 604 | -9/Mines | A large section of the Mines collapsed 696 | -9/Mines | A Derelict revealed a hidden shortcut to a safe place 708 | -9/Mines | Entered Zion 782 | -7/Zion | Found Prototype Device 782 | -7/Zion | Identified Phasing AFG 859 | -7/Zion | Given the Hacking Drone Bay 862 | -7/Zion | Found Prototype Device 862 | -7/Zion | Identified Hacking Drone Bay 876 | -7/Zion | Learned Factory trap positions 889 | -7/Zion | Learned location of Quarantine (-2) 1123 | -7/Zion | Given A8's code to call for help 1283 | -7/Zion | Learned 8 Factory zone layouts 1327 | -7/Zion | Learned location of Warlord (-5) 1424 | -7/Zion | Found CR-A16's Pointy Stick 1540 | -7/Zion | Met Imprinter 1561 | -7/Zion | Imprinted 1563 | -7/Zion | Declared Zion's savior 1701 | -7/Zion | Enhanced Grunt warped into view, answering call for help 1702 | -7/Zion | Enhanced Grunt warped into view, answering call for help 1752 | -7/Zion | Build established: Derelict-Mutant 2825 | -7/Zion | Discovered new exit (range 13) 2892 | -7/Zion | Entered Proximity Caves 2892 | -6/Proximity Caves | Accompanied by 7 allies 3024 | -6/Proximity Caves | Learned Factory emergency access door positions 3193 | -6/Proximity Caves | Core integrity fell below 50% 3448 | -6/Proximity Caves | Attracted the attention of an 0b10 outpost 3497 | -6/Proximity Caves | Lost 3 allies 3568 | -6/Proximity Caves | Identified exit to Factory 3730 | -6/Proximity Caves | Entered Factory 3730 | -6/Factory | Accompanied by 2 allies 3730 | -6/Factory | Evolved 6 slots: Power x2, Propulsion x2, Utility x1, Weapon x1 3731 | -6/Factory | Identified exit to Factory 3732 | -6/Factory | Loaded intel: 80 trap records 4010 | -6/Factory | Entered another Factory area 4010 | -5/Factory | Accompanied by 1 ally 4010 | -5/Factory | Evolved 2 slots: Utility x2 4092 | -5/Factory | Identified exit to DSF 4373 | -5/Factory | Zion Recon squad teleported in 4377 | -5/Factory | Lost 3 parts (1p2n) 4479 | -5/Factory | Lost 10 parts (2p3n3u2w) 4484 | -5/Factory | Core integrity fell below 50% 4490 | -5/Factory | Discovered new exit (range 12) 4500 | -5/Factory | Entered another Factory area 4500 | -4/Factory | Evolved 2 slots: Propulsion x2 4529 | -4/Factory | Lost 6 parts (2p1n2u1w) 4716 | -4/Factory | Zion Trap Resupply teleported in 4717 | -4/Factory | Build established: Mutant 4772 | -4/Factory | Zion Hacker squad teleported in 4788 | -4/Factory | Lost 3 parts (2n1u) 4823 | -4/Factory | Lost 3 allies 4840 | -4/Factory | Discovered new exit (range 5) 4841 | -4/Factory | Identified exit to Extension 4842 | -4/Factory | Entered Extension 4893 | -4/Extension | Zion Hacking Resupply teleported in 4900 | -4/Extension | Rescued a captive Derelict 4922 | -4/Extension | Zion Heavy squad teleported in 4968 | -4/Extension | Retrieved Zion intel report: Main Access 4968 | -4/Extension | Identified exit to Research 4996 | -4/Extension | Spotted B-86 Titan 5002 | -4/Extension | Spotted B-86 Titan 5006 | -4/Extension | Core integrity fell below 50% 5023 | -4/Extension | Core integrity fell below 20% 5029 | -4/Extension | Destroyed by Y-64 Sentinel with KE Penetrator Last Messages --------------- U-05 Engineer destroyed. Flexi-carbon Leg destroyed. B-86 Titan activates siege mode. Slug penetrates Door Terminal. Door Terminal disabled. Penetrated by Slug. Reaction Control System destroyed. Penetrated by Slug. Slug penetrates Sealed Heavy Doors. Zio. Composite Leg II destroyed. B-86 Titan activates siege mode. Penetrated by Slug. Slammed into K-01 Serf. Penetrated by Slug. VTOL Module destroyed. Critical hit (Burn: +37). Penetrated by Slug. Imp. Focal Shield destroyed. Acquired 7 matter. Penetrated by Slug. Map ----- +----------------------------------------------------+ | ??????# #????????????????????????????????????????? | | ??????# #????????????????????????????????????????? | | ##????# #????????????????????????????????????????? | | #????# #????????????????????????????????????????? | | #????# #????????????????????????????????????????? | | #????# #????????????????????????????????????????? | | #????# #????????????????????????????????????????? | | #????# #????????????????????????????????????????? | | #????# #????????????????????????????????????????? | | #????# #????????????????????????????????????????? | | #????# #????????????????????????????????????????? | | #????# #????????# ??????????????????????????????? | | ##????# #????????# ??????????????????????????????? | | ??????# #????????# ??????????????????????????????? | | ??????# ########?# ??????????????????????????????? | | ????### %## ## ### ###???????????????????????????? | | ????#""! "" ""#???????????????????????????? | | ????" " " #???????????????????????????? | | ????#% Y #???????????????????????????? | | ????# #???????????????????????????? | | ##### Y ##################??????????? | | k ?????????? | | ?????????? | | ????????? | | % BB k ????????? | | %* BB u R uu @ R R ????????? | | #"### R ################????????????? | | ??# # #???????????????????????????? | | ???#" % #???????????????????????????? | | ???## #???????????????????????????? | | ???#" % #???????????????????????????? | | ???#####"# #"""#######???????????????????????????? | | ???????#####?